bitfinex/quotes_BTCUSD_20230120
["timestamp","ask_amount","ask_price","bid_price","bid_amount"]
[1674235031369,0.37855124,21391.0,21389.0,0.4729434]
[1674235033581,0.009,21391.0,21389.0,0.9404614]
[1674235033849,0.009,21391.0,21390.0,0.14080114]
[1674235034105,0.009,21391.0,21390.0,0.55060359]
[1674235034666,0.009,21391.0,21390.0,0.86395559]
[1674235034926,0.0742,21394.0,21390.0,1.33146359]
[1674235035212,0.46062159,21394.0,21391.0,0.306054]
[1674235035475,0.46062159,21394.0,21392.0,0.467464]
[1674235035780,0.46062159,21394.0,21392.0,0.68220176]
[1674235036056,0.37620403,21395.0,21392.0,0.68220176]
[1674235036329,0.37620403,21395.0,21392.0,0.87652273]
[1674235036588,0.09,21394.0,21393.0,0.318527]
[1674235036841,0.35397797,21394.0,21393.0,0.97952118]
[1674235037136,0.35397797,21394.0,21393.0,0.467426]
[1674235037390,0.091,21395.0,21392.0,0.467463]
[1674235037391,0.4459383,21393.0,21392.0,0.467463]
[1674235037655,0.4459383,21393.0,21391.0,0.467472]
[1674235037940,0.4459383,21393.0,21391.0,1.07530262]
[1674235038194,0.47892193,21393.0,21391.0,0.91830614]
[1674235038493,0.4459383,21393.0,21391.0,0.45083414]
[1674235039276,0.4459383,21393.0,21389.0,0.47399498]
[1674235039531,0.47892193,21393.0,21389.0,0.82187075]
[1674235040021,0.47892193,21393.0,21389.0,1.09076082]
[1674235040022,0.47892193,21393.0,21389.0,1.09076082]
[1674235040354,0.36172356,21392.0,21389.0,1.09076082]
[1674235040844,0.36172356,21392.0,21389.0,0.82176724]
[1674235041120,0.36172356,21392.0,21389.0,0.81676724]
[1674235041367,0.36172356,21392.0,21390.0,0.457891]
[1674235043162,0.36872356,21392.0,21390.0,0.457891]
[1674235046596,0.36872356,21392.0,21389.0,0.84623504]
[1674235046876,0.34687415,21391.0,21389.0,0.46890547]
[1674235047153,0.34687415,21391.0,21389.0,0.00137647]
[1674235047684,0.34687415,21391.0,21389.0,0.43229412]
[1674235049029,0.35587415,21391.0,21389.0,0.43229412]
[1674235049550,0.009,21391.0,21389.0,1.05219413]
[1674235049819,0.009,21391.0,21390.0,0.38930518]
[1674235050083,0.11353,21391.0,21389.0,0.62127648]
[1674235050397,0.56122378,21391.0,21389.0,0.62127248]
[1674235050941,0.55222378,21391.0,21389.0,1.08880248]
[1674235051205,0.56222378,21391.0,21389.0,0.62129248]
[1674235051457,0.56222378,21391.0,21389.0,1.08882248]
[1674235051718,0.46669378,21391.0,21389.0,1.08882248]
[1674235051984,0.46669378,21391.0,21389.0,1.65660083]
[1674235052251,0.46669378,21391.0,21389.0,1.18907083]
[1674235052782,0.46669378,21391.0,21389.0,1.50660083]
[1674235053092,0.46669378,21391.0,21389.0,1.03907083]
[1674235053891,0.46669378,21391.0,21390.0,0.43396784]
[1674235053892,0.019,21391.0,21390.0,0.43396784]
[1674235054152,0.019,21391.0,21390.0,1.85755584]
[1674235054412,0.019,21391.0,21390.0,2.12785067]
[1674235054939,0.43036232,21394.0,21391.0,0.15]
[1674235055203,1.33072465,21396.0,21392.0,0.467464]
[1674235055204,0.37896781,21393.0,21392.0,0.467464]
[1674235055775,0.27922665,21396.0,21392.0,0.467464]
[1674235056052,0.11169066,21394.0,21392.0,0.66178497]
[1674235056324,0.19951,21393.0,21392.0,0.467464]
[1674235056581,0.42863832,21394.0,21392.0,0.467464]
[1674235056837,0.54032898,21394.0,21392.0,0.467464]
[1674235057152,0.22951,21393.0,21392.0,0.467464]
[1674235057455,0.03,21393.0,21392.0,0.467464]
[1674235057716,0.11169066,21393.0,21392.0,0.467464]
[1674235058004,0.63032898,21394.0,21392.0,0.467464]
[1674235058276,0.42863832,21394.0,21392.0,0.467464]
[1674235058534,0.4676058,21393.0,21392.0,0.467464]
[1674235058791,0.6671158,21393.0,21391.0,0.93612216]
[1674235059055,0.4676058,21393.0,21391.0,0.46865616]
[1674235059323,0.4676058,21393.0,21390.0,0.934982]
[1674235059588,0.4676058,21393.0,21391.0,0.467482]
[1674235059589,0.65572591,21392.0,21391.0,0.467482]
[1674235059867,0.56790657,21392.0,21390.0,0.467504]
[1674235060142,0.56790657,21392.0,21391.0,0.467486]
[1674235060973,0.76741657,21392.0,21391.0,0.462486]
[1674235061158,0.77441657,21392.0,21391.0,0.462486]
[1674235061423,0.56790657,21392.0,21391.0,0.462486]
[1674235061674,0.66272591,21392.0,21391.0,0.462486]
[1674235061941,0.46321591,21392.0,21391.0,0.929972]
[1674235062209,0.54690144,21397.0,21391.0,0.929972]
[1674235062480,0.0742,21394.0,21392.0,0.5425723]
[1674235062733,0.19951,21393.0,21392.0,0.81569633]
[1674235063004,0.0742,21394.0,21392.0,0.34825133]
[1674235063256,0.0742,21394.0,21392.0,0.50026011]
[1674235063730,0.1582,21394.0,21392.0,0.50126011]
[1674235064243,0.1582,21394.0,21392.0,0.34925133]
[1674235064520,0.19951,21393.0,21392.0,0.34925133]
[1674235065034,0.1582,21394.0,21392.0,0.34925133]
[1674235065316,0.19951,21393.0,21392.0,0.34925133]
[1674235065600,0.1582,21394.0,21392.0,0.34925133]
[1674235065601,0.1582,21394.0,21393.0,0.41437417]
[1674235065871,0.78841863,21394.0,21393.0,0.41437417]
[1674235066160,0.27371,21394.0,21393.0,0.41437417]
[1674235066984,0.934746,21397.0,21393.0,0.74372596]
[1674235066985,0.92346508,21397.0,21393.0,0.74372596]
[1674235066986,0.467372,21397.0,21393.0,0.60247282]
[1674235067278,1.83195,21398.0,21393.0,1.07091482]
[1674235067279,0.084,21394.0,21393.0,1.07091482]
[1674235067593,0.084,21394.0,21393.0,1.38449482]
[1674235068106,0.084,21394.0,21393.0,1.53449482]
[1674235068368,0.21216577,21399.0,21393.0,2.02906268]
[1674235068625,0.077,21397.0,21394.0,0.84403435]
[1674235068928,0.21216577,21399.0,21396.0,0.0742]
[1674235069179,0.21216577,21399.0,21397.0,1.788312]
[1674235069455,0.21216577,21399.0,21398.0,0.306635]
[1674235069722,0.22016577,21399.0,21398.0,1.59121976]
[1674235069980,0.21216577,21399.0,21398.0,1.37633182]
[1674235070270,0.24216577,21399.0,21398.0,1.76494797]
[1674235070570,0.24216577,21399.0,21398.0,1.71113193]
[1674235070838,0.24216577,21399.0,21398.0,1.98393676]
[1674235071351,0.27216577,21399.0,21398.0,1.52833182]
[1674235071650,0.27216577,21399.0,21398.0,1.93789581]
[1674235072430,0.27216577,21399.0,21398.0,1.65286499]
[1674235075580,0.27216577,21399.0,21398.0,1.67339299]
[1674235075822,0.27216577,21399.0,21398.0,1.34622999]
[1674235076353,0.27216577,21399.0,21398.0,1.67068899]
[1674235076971,0.27216577,21399.0,21398.0,1.34622999]
[1674235078920,0.27216577,21399.0,21398.0,1.64756999]
[1674235079184,0.27216577,21399.0,21398.0,1.34622999]
[1674235080244,0.27216577,21399.0,21398.0,1.65721299]
[1674235080762,0.27216577,21399.0,21398.0,1.34622999]
[1674235081556,0.27216577,21399.0,21398.0,1.67786399]
[1674235081814,0.27216577,21399.0,21398.0,1.21053099]
[1674235082103,0.27216577,21399.0,21398.0,0.87889699]
[1674235082353,0.27216577,21399.0,21398.0,1.34622999]
[1674235082617,0.27216577,21399.0,21398.0,0.87889699]
[1674235083588,0.27216577,21399.0,21398.0,1.34622999]
[1674235083596,0.27216577,21399.0,21398.0,0.41156399]
[1674235083857,0.27216577,21399.0,21398.0,0.60792029]
[1674235084118,0.27216577,21399.0,21398.0,1.54258629]
[1674235084694,0.27205389,21399.0,21398.0,1.6061753]
[1674235084900,0.27205389,21399.0,21398.0,1.90725445]
[1674235085160,0.27205389,21399.0,21398.0,1.38774515]
[1674235085647,0.63023821,21399.0,21398.0,0.936666]
[1674235086164,0.63023821,21399.0,21398.0,0.469333]
[1674235086662,0.27205389,21399.0,21398.0,0.469333]
[1674235086923,0.27205389,21399.0,21398.0,0.95601375]
[1674235087438,0.27205389,21399.0,21398.0,1.42334675]
[1674235088494,0.27205389,21399.0,21398.0,0.469333]
[1674235088735,0.60448919,21399.0,21398.0,0.002]
[1674235088998,0.80399919,21399.0,21398.0,0.002]
[1674235089506,0.27205389,21399.0,21398.0,0.002]
[1674235089805,0.27205389,21399.0,21398.0,0.12949643]
[1674235090545,0.27205389,21399.0,21398.0,0.56455002]
[1674235091060,0.27205389,21399.0,21398.0,0.12949643]
[1674235091588,0.61074755,21399.0,21398.0,0.002]
[1674235092422,0.27205389,21399.0,21398.0,0.002]
[1674235093104,0.27205389,21399.0,21398.0,0.83721069]
[1674235093885,0.27205389,21399.0,21398.0,0.36987769]
[1674235094384,0.27205389,21399.0,21398.0,0.002]
[1674235094654,0.27205389,21399.0,21398.0,0.46523857]
[1674235094913,0.27205389,21399.0,21398.0,0.93257157]
[1674235095690,0.22595389,21399.0,21398.0,0.93257157]
[1674235096227,0.22595389,21399.0,21398.0,1.39990457]
[1674235096431,0.22595389,21399.0,21398.0,1.75162863]
[1674235096687,0.22595389,21399.0,21398.0,2.07101663]
[1674235096950,0.22595389,21399.0,21398.0,2.06750763]
[1674235098494,0.22595389,21399.0,21398.0,1.75162863]
[1674235098767,0.22595389,21399.0,21398.0,1.54990457]
[1674235099002,0.22595389,21399.0,21398.0,1.39990457]
[1674235099259,0.59355172,21399.0,21398.0,0.936666]
[1674235099762,0.59355172,21399.0,21398.0,0.002]
[1674235100085,0.79306172,21399.0,21398.0,0.002]
[1674235101340,0.79926389,21399.0,21398.0,0.002]
[1674235101596,1.35594265,21399.0,21398.0,0.002]
[1674235102118,1.82325365,21399.0,21398.0,0.002]
[1674235102849,1.52325365,21399.0,21398.0,0.002]
[1674235103108,1.37325365,21399.0,21398.0,0.002]
[1674235103360,1.67325365,21399.0,21398.0,0.002]
[1674235103631,3.07369164,21399.0,21398.0,0.002]
[1674235103900,4.14367538,21399.0,21398.0,0.00180001]
[1674235104143,2.61097212,21399.0,21398.0,0.00180001]
[1674235104698,2.51269286,21399.0,21392.0,0.467444]
[1674235104957,0.0742,21396.0,21393.0,0.1273442]
[1674235105213,0.19951,21395.0,21393.0,0.50502821]
[1674235105475,0.10718363,21396.0,21393.0,0.50502821]
[1674235105728,0.0742,21396.0,21393.0,0.50502821]
[1674235106016,0.53373131,21396.0,21393.0,0.50502821]
[1674235106558,0.19951,21395.0,21393.0,0.37768401]
[1674235106817,0.38950364,21395.0,21393.0,0.37768401]
[1674235107098,0.19951,21394.0,21393.0,0.37768401]
[1674235107649,0.27331,21394.0,21391.0,0.467485]
[1674235108132,0.10678363,21394.0,21391.0,0.85231985]
[1674235108442,0.19951,21393.0,21391.0,0.38483485]
[1674235108700,0.3,21393.0,21390.0,0.46215782]
[1674235108953,0.6037733,21392.0,21390.0,0.46215782]
[1674235109241,0.4042633,21392.0,21390.0,0.46215782]
[1674235109505,0.19951,21391.0,21389.0,0.80391717]
[1674235109780,0.4042633,21392.0,21390.0,0.4673954]
[1674235110026,0.4042633,21392.0,21389.0,0.80391717]
[1674235110294,0.4272633,21392.0,21389.0,0.80391717]
[1674235110566,0.4042633,21392.0,21390.0,0.45987549]
[1674235110820,0.007,21391.0,21390.0,0.45987549]
[1674235111080,0.4042633,21392.0,21390.0,0.45987549]
[1674235111081,0.4042633,21392.0,21390.0,0.60987549]
[1674235111339,0.4272633,21392.0,21390.0,0.60987549]
[1674235111602,0.4042633,21392.0,21390.0,0.60987549]
[1674235111867,0.4042633,21392.0,21390.0,0.45987549]
[1674235112408,0.26371,21391.0,21389.0,0.00137647]
[1674235112676,0.41406395,21391.0,21389.0,0.00137647]
[1674235112944,0.19951,21390.0,21389.0,0.00137647]
[1674235113233,0.19951,21390.0,21389.0,0.46572203]
[1674235113504,0.19951,21390.0,21389.0,0.46672203]
[1674235113784,0.41406395,21391.0,21389.0,0.46572203]
[1674235114037,0.11453,21390.0,21389.0,0.00337647]
[1674235115052,0.01,21390.0,21389.0,0.00337647]
[1674235115308,0.43431516,21390.0,21389.0,0.00137647]
[1674235115568,0.43431516,21390.0,21389.0,0.00237647]
[1674235116095,0.44431516,21390.0,21389.0,0.00437647]
[1674235117442,0.01,21390.0,21389.0,0.00437647]
[1674235118244,0.10498,21390.0,21389.0,0.00437647]
[1674235120961,0.30449,21390.0,21389.0,0.00437647]
[1674235121241,0.68900433,21390.0,21389.0,0.00437647]
[1674235122026,0.48949433,21390.0,21389.0,0.00437647]
[1674235122291,0.39451433,21390.0,21389.0,0.00437647]
[1674235122779,0.01,21390.0,21389.0,0.14264817]
[1674235122781,0.01,21390.0,21389.0,0.58936309]
[1674235123037,0.01,21390.0,21389.0,1.83785109]
[1674235124071,0.01,21390.0,21389.0,1.69957939]
[1674235124366,0.01,21390.0,21389.0,1.84957939]
[1674235125158,0.13796363,21390.0,21389.0,1.69957939]
[1674235125421,0.10498,21390.0,21389.0,1.38615139]
[1674235125686,0.10498,21390.0,21389.0,0.91862139]
[1674235125941,0.01,21390.0,21389.0,0.91862139]
[1674235126195,0.01,21390.0,21389.0,1.05788493]
[1674235126474,0.01,21390.0,21389.0,1.37819393]
[1674235126725,0.01,21390.0,21389.0,1.36819393]
[1674235126973,0.01,21390.0,21389.0,0.90066393]
[1674235127232,0.10498,21390.0,21389.0,0.46753]
[1674235127491,0.10498,21390.0,21388.0,1.51799141]
[1674235127757,0.10498,21390.0,21389.0,0.46753]
[1674235128292,0.01,21390.0,21389.0,1.08506]
[1674235128519,0.34757573,21391.0,21389.0,1.31425944]
[1674235128781,0.10398,21390.0,21389.0,1.08506]
[1674235129121,0.09498,21390.0,21389.0,0.46753]
[1674235129283,0.10498,21390.0,21389.0,0.46753]
[1674235129517,0.09498,21390.0,21389.0,0.46753]
[1674235129773,0.48280596,21390.0,21389.0,0.68172974]
[1674235130029,0.48280596,21390.0,21389.0,0.46753]
[1674235130290,0.48280596,21390.0,21388.0,0.90045441]
[1674235130291,0.69231596,21390.0,21388.0,0.467533]
[1674235130544,0.69231596,21390.0,21387.0,0.00647998]
[1674235130545,1.03452696,21390.0,21387.0,0.00647998]
[1674235130805,0.19951,21389.0,21387.0,0.00647998]
[1674235131065,0.72310333,21390.0,21387.0,0.00647998]
[1674235131338,0.31857063,21389.0,21387.0,0.00647998]
[1674235131636,0.915951,21388.0,21387.0,0.00647998]
[1674235131892,1.583012,21388.0,21387.0,0.00647998]
[1674235132435,1.283012,21388.0,21387.0,0.00647998]
[1674235132706,1.583012,21388.0,21387.0,0.00647998]
[1674235132981,1.90482022,21388.0,21387.0,0.00647998]
[1674235133226,2.29852191,21388.0,21387.0,0.00647998]
[1674235133486,2.63701261,21388.0,21387.0,0.00647998]
[1674235134010,2.88061261,21388.0,21387.0,0.00647998]
[1674235134523,2.31071369,21388.0,21387.0,0.00647998]
[1674235137398,2.94080439,21388.0,21387.0,0.00583199]
[1674235137659,3.08390439,21388.0,21387.0,0.00583199]
[1674235140517,2.59381369,21388.0,21387.0,0.00583199]
[1674235140789,1.86071369,21388.0,21387.0,0.20015296]
[1674235141050,2.01071369,21388.0,21387.0,0.00583199]
[1674235141559,1.93651369,21388.0,21387.0,0.00583199]
[1674235141820,2.64080439,21388.0,21387.0,0.00583199]
[1674235142322,2.29381369,21388.0,21387.0,0.00583199]
[1674235142568,2.59381369,21388.0,21387.0,0.00583199]
[1674235142829,2.48928448,21388.0,21387.0,0.00583199]
[1674235143093,2.63928448,21388.0,21387.0,0.00583199]
[1674235143346,2.29381369,21388.0,21387.0,0.00583199]
[1674235143918,2.14381369,21388.0,21387.0,0.00583199]
[1674235144124,2.59293017,21388.0,21387.0,0.00583199]
[1674235144379,2.60133017,21388.0,21387.0,0.00583199]
[1674235144885,2.572267,21388.0,21387.0,0.00583199]
[1674235145164,2.15221369,21388.0,21387.0,0.00583199]
[1674235145401,2.03159139,21388.0,21387.0,0.00583199]
[1674235145654,1.73159139,21388.0,21387.0,0.00583199]
[1674235145945,2.03159139,21388.0,21387.0,0.00583199]
[1674235146425,1.68466269,21388.0,21387.0,0.00583199]
[1674235146666,2.12733902,21388.0,21387.0,0.00583199]
[1674235146920,1.65978802,21388.0,21387.0,0.00583199]
[1674235147181,1.61046269,21388.0,21387.0,0.00583199]
[1674235147416,2.01142503,21388.0,21387.0,0.00583199]
[1674235147667,1.77801369,21388.0,21387.0,0.00583199]
[1674235147919,2.07801369,21388.0,21387.0,0.00583199]
[1674235148183,2.4177244,21388.0,21387.0,0.00583199]
[1674235148680,2.1177244,21388.0,21387.0,0.00583199]
[1674235148939,2.4177244,21388.0,21387.0,0.00583199]
[1674235149188,2.1177244,21388.0,21387.0,0.00583199]
[1674235149454,2.4177244,21388.0,21387.0,0.00583199]
[1674235149746,2.48992797,21388.0,21387.0,0.00583199]
[1674235150242,2.48492797,21388.0,21387.0,0.00583199]
[1674235150779,2.18492797,21388.0,21387.0,0.00583199]
[1674235151061,1.16597528,21388.0,21387.0,0.00583199]
[1674235152401,0.092,21388.0,21387.0,0.09986199]
[1674235152655,0.092,21388.0,21387.0,0.86328886]
[1674235152910,0.092,21388.0,21387.0,0.89318014]
[1674235153427,0.092,21388.0,21387.0,0.86503199]
[1674235153717,1.42173408,21394.0,21387.0,1.21624417]
[1674235153718,0.34689657,21392.0,21387.0,1.21624417]
[1674235153975,0.083,21388.0,21387.0,0.54800499]
[1674235154246,0.44770871,21394.0,21387.0,0.86487699]
[1674235154494,0.44770871,21394.0,21388.0,0.5127003]
[1674235154766,0.44770871,21394.0,21390.0,0.0739]
[1674235155248,0.42877004,21393.0,21390.0,0.541393]
[1674235155249,0.42877004,21393.0,21390.0,0.54094697]
[1674235155544,0.42877004,21393.0,21390.0,0.7230892]
[1674235155781,1.44632699,21397.0,21391.0,0.15]
[1674235156044,0.44858845,21394.0,21392.0,0.19432097]
[1674235156315,0.47720169,21396.0,21393.0,0.0344321]
[1674235156316,0.11172123,21396.0,21393.0,0.0344321]
[1674235156606,0.39206176,21395.0,21393.0,0.22875307]
[1674235156870,0.58005148,21394.0,21391.0,1.00671754]
[1674235157132,0.41352511,21394.0,21391.0,1.00571754]
[1674235157399,0.38054148,21394.0,21393.0,0.001]
[1674235157652,0.38054148,21394.0,21391.0,1.13819359]
[1674235158458,0.62537239,21396.0,21393.0,0.001]
[1674235158459,0.19572123,21396.0,21393.0,0.001]
[1674235158759,0.44851462,21394.0,21393.0,0.19432097]
[1674235159047,1.03202462,21394.0,21391.0,0.38923954]
[1674235159331,0.53251462,21394.0,21391.0,0.85570954]
[1674235159609,0.53251462,21394.0,21393.0,0.001]
[1674235159610,0.56549825,21394.0,21393.0,0.001]
[1674235159872,9.999e-05,21392.0,21390.0,0.35846981]
[1674235160616,9.999e-05,21392.0,21391.0,0.001]
[1674235161136,0.48068181,21392.0,21391.0,0.001]
[1674235161395,1.08623211,21392.0,21388.0,0.42372951]
[1674235161696,0.50168544,21392.0,21390.0,0.001]
[1674235161925,0.19951,21391.0,21388.0,0.42372951]
[1674235162185,0.33298363,21391.0,21388.0,0.42372951]
[1674235162454,0.19951,21390.0,21388.0,0.42372951]
[1674235162715,0.67769776,21392.0,21388.0,0.42472951]
[1674235163013,0.3,21391.0,21388.0,0.42372951]
[1674235163829,0.46756599,21392.0,21388.0,0.14350615]
[1674235164132,0.35799345,21391.0,21388.0,0.19432097]
[1674235164395,0.35799345,21391.0,21387.0,0.83934636]
[1674235164674,0.006,21390.0,21388.0,0.50531917]
[1674235164930,0.38673341,21391.0,21388.0,0.49831917]
[1674235165196,0.41573341,21391.0,21388.0,0.49931917]
[1674235165453,0.44206835,21390.0,21388.0,0.36059163]
[1674235166562,0.44206835,21390.0,21388.0,0.36159163]
[1674235167366,0.44206835,21390.0,21389.0,0.0005625]
[1674235167621,0.44806835,21390.0,21389.0,0.0005625]
[1674235167889,0.001,21390.0,21389.0,0.09142811]
[1674235168155,0.001,21390.0,21389.0,0.0005625]
[1674235168479,0.45156905,21391.0,21389.0,0.0005625]
[1674235168672,0.006,21390.0,21389.0,0.0115625]
[1674235169509,0.45156905,21391.0,21389.0,0.0005625]
[1674235170347,0.47756905,21391.0,21389.0,0.0025625]
[1674235170603,0.47756905,21391.0,21389.0,0.04667111]
[1674235171164,0.47756905,21391.0,21389.0,0.0025625]
[1674235172245,0.38373318,21390.0,21389.0,0.0025625]
[1674235172494,0.58324318,21390.0,21389.0,0.0025625]
[1674235173026,0.38373318,21390.0,21389.0,0.0025625]
[1674235173287,0.38373318,21390.0,21389.0,0.0005625]
[1674235173542,0.38973318,21390.0,21389.0,0.0115625]
[1674235174092,0.88924318,21390.0,21389.0,0.0115625]
[1674235174596,0.76723123,21390.0,21389.0,0.0115625]
[1674235174860,3.69481391,21390.0,21389.0,0.0115625]
[1674235175388,4.04161512,21390.0,21389.0,0.0115625]
[1674235175655,3.69462442,21390.0,21389.0,0.0115625]
[1674235175917,3.47102337,21390.0,21389.0,0.0115625]
[1674235176234,4.30061626,21390.0,21389.0,0.0115625]
[1674235176426,0.19249108,21388.0,21387.0,0.00583199]
[1674235176684,1.95840207,21388.0,21387.0,0.00583199]
[1674235176943,2.45791207,21388.0,21387.0,0.00583199]
[1674235177201,1.99036107,21388.0,21387.0,0.00583199]
[1674235177720,1.99036107,21388.0,21387.0,0.00683199]
[1674235177721,2.26161136,21388.0,21387.0,0.00683199]
[1674235178023,2.07570885,21388.0,21387.0,0.00683199]
[1674235178263,1.71775377,21388.0,21387.0,0.00683199]
[1674235178517,1.82955399,21388.0,21387.0,0.00683199]
[1674235178785,1.97955399,21388.0,21387.0,0.00683199]
[1674235179036,3.42287563,21388.0,21387.0,0.00683199]
[1674235179299,3.16837387,21388.0,21387.0,0.00683199]
[1674235180101,3.16811236,21388.0,21387.0,0.0061488]
[1674235180358,3.25061236,21388.0,21387.0,0.0061488]
[1674235180626,3.02700597,21388.0,21387.0,0.0061488]
[1674235180902,3.37758868,21388.0,21387.0,0.0061488]
[1674235181161,3.5336276,21388.0,21387.0,0.0061488]
[1674235181687,2.36279847,21388.0,21387.0,0.0061488]
[1674235182198,2.82157676,21388.0,21387.0,0.0061488]
[1674235182456,3.73070046,21388.0,21387.0,0.0061488]
[1674235182773,3.88070046,21388.0,21387.0,0.0061488]
[1674235183037,3.86027303,21388.0,21387.0,0.0061488]
[1674235183298,3.93447303,21388.0,21387.0,0.0061488]
[1674235184125,4.21386901,21388.0,21387.0,0.0061488]
[1674235184364,4.27045895,21388.0,21387.0,0.0061488]
[1674235184899,3.93447303,21388.0,21387.0,0.0061488]
[1674235185158,4.27045895,21388.0,21387.0,0.0061488]
[1674235185975,3.93447303,21388.0,21387.0,0.0061488]
[1674235186456,4.27045895,21388.0,21387.0,0.0009439]
[1674235186792,3.58748233,21388.0,21387.0,0.0009439]
[1674235187060,3.60187084,21388.0,21387.0,0.0009439]
[1674235187330,3.53418409,21388.0,21387.0,0.0009439]
[1674235187595,3.62817658,21388.0,21387.0,0.0009439]
[1674235187864,2.35655676,21388.0,21387.0,0.0009439]
[1674235188169,2.07345676,21388.0,21387.0,0.0009439]
[1674235188436,1.96174626,21388.0,21387.0,0.0009439]
[1674235188692,1.67946427,21388.0,21387.0,0.0009439]
[1674235188947,1.84703002,21388.0,21387.0,0.0009439]
[1674235189493,1.99703002,21388.0,21387.0,0.0009439]
[1674235189779,3.29508391,21388.0,21387.0,0.0009439]
[1674235190548,3.7776861,21388.0,21387.0,0.0009439]
[1674235190818,3.77766653,21388.0,21387.0,0.0009439]
[1674235191298,3.60668252,21388.0,21387.0,0.0009439]
[1674235191564,2.55275857,21388.0,21387.0,0.0009439]
[1674235192036,2.72028628,21388.0,21387.0,0.0009439]
[1674235192037,2.2586681,21388.0,21387.0,0.0009439]
[1674235192302,2.59704039,21388.0,21387.0,0.0009439]
[1674235192558,3.79027936,21388.0,21387.0,0.0009439]
[1674235192816,4.24725823,21388.0,21387.0,0.0009439]
[1674235193609,4.58766481,21388.0,21387.0,0.0009439]
[1674235193849,5.09012846,21388.0,21387.0,0.0009439]
[1674235194113,4.91507293,21388.0,21387.0,0.0009439]
[1674235194427,4.98908275,21388.0,21387.0,0.0009439]
[1674235194640,4.70992298,21388.0,21387.0,0.0009439]
[1674235194903,4.98908326,21388.0,21387.0,0.0009439]
[1674235195167,5.0459089,21388.0,21387.0,0.00046947]
[1674235195427,4.16597434,21388.0,21387.0,0.00046947]
[1674235195690,3.53865604,21388.0,21387.0,0.00046947]
[1674235196217,3.15591114,21388.0,21387.0,0.00046947]
[1674235196479,2.98846555,21388.0,21387.0,0.00046947]
[1674235196740,3.83803218,21388.0,21387.0,0.00031142]
[1674235197046,3.53803218,21388.0,21387.0,0.00031142]
[1674235197309,3.87849705,21388.0,21387.0,0.00031142]
[1674235197606,4.36109924,21388.0,21387.0,0.00031142]
[1674235197876,3.53803218,21388.0,21387.0,0.00031142]
[1674235198134,2.93259918,21388.0,21387.0,0.00031142]
[1674235198406,3.45579173,21388.0,21387.0,0.00031142]
[1674235198702,0.15,21387.0,21381.0,0.7232638]
[1674235198959,2.20202432,21386.0,21381.0,0.32472423]
[1674235199217,0.0742,21384.0,21381.0,0.17472423]
[1674235199482,0.467661,21383.0,21382.0,0.0938427]
[1674235199827,0.97783232,21384.0,21381.0,0.39618428]
[1674235199828,1.41250369,21384.0,21381.0,0.39618428]
[1674235200070,0.19951,21383.0,21381.0,0.39618428]
[1674235200323,1.41250369,21384.0,21381.0,0.39618428]
[1674235201142,0.59172133,21383.0,21381.0,0.00016242]
[1674235201401,1.32754933,21383.0,21381.0,0.00016242]
[1674235201665,0.19951,21382.0,21381.0,0.00016242]
[1674235203254,0.29045284,21385.0,21381.0,0.66518287]
[1674235203255,0.57921484,21385.0,21381.0,0.66518287]
[1674235203516,0.43688571,21385.0,21382.0,0.64505319]
[1674235204048,0.43688571,21385.0,21382.0,0.45073222]
[1674235204585,0.43688571,21385.0,21383.0,0.8323644]
[1674235206679,0.43688571,21385.0,21383.0,0.8223644]
[1674235206952,0.43688571,21385.0,21383.0,0.8223594]
[1674235207213,0.43688571,21385.0,21383.0,0.3547034]
[1674235207491,0.43688571,21385.0,21383.0,0.4289034]
[1674235208004,0.43688571,21385.0,21383.0,1.01691012]
[1674235208546,0.43632294,21385.0,21383.0,0.8965554]
[1674235209597,1.00033259,21388.0,21384.0,0.4862562]
[1674235209879,0.08448108,21388.0,21385.0,1.12664489]
[1674235210138,0.4391449,21388.0,21387.0,0.0736]
[1674235211966,0.4391449,21388.0,21387.0,0.541173]
[1674235212235,0.4391449,21388.0,21387.0,0.0736]
[1674235212467,0.08448108,21388.0,21387.0,0.67034474]
[1674235212732,0.08448108,21388.0,21387.0,0.53942357]
[1674235214018,0.08448108,21388.0,21387.0,1.00699657]
[1674235215089,0.08448108,21388.0,21387.0,1.34252557]
[1674235215662,0.08448108,21388.0,21387.0,1.38476692]
[1674235215913,0.08448108,21388.0,21387.0,1.71295081]
[1674235216182,0.08448108,21388.0,21387.0,1.38476692]
[1674235216696,0.00348108,21388.0,21387.0,1.38476692]
[1674235216952,0.03348108,21388.0,21387.0,1.38676692]
[1674235217203,0.00348108,21388.0,21387.0,1.38476692]
[1674235217491,0.03348108,21388.0,21387.0,0.952502]
[1674235217701,0.03348108,21388.0,21387.0,1.28748837]
[1674235217976,0.06348108,21388.0,21387.0,1.28948837]
[1674235218266,0.00348108,21388.0,21387.0,1.28748837]
[1674235218472,0.00348108,21388.0,21387.0,0.95395937]
[1674235218473,0.03348108,21388.0,21387.0,0.95395937]
[1674235218729,0.03348108,21388.0,21387.0,1.15787301]
[1674235218981,0.03348108,21388.0,21387.0,0.69030001]
[1674235219237,0.03348108,21388.0,21387.0,0.48638637]
[1674235220806,0.03348108,21388.0,21387.0,0.95395937]
[1674235221295,0.02908108,21388.0,21387.0,0.95395937]
[1674235221548,0.02908108,21388.0,21387.0,0.543373]
[1674235221801,0.02908108,21388.0,21387.0,0.876398]
[1674235222072,0.02908108,21388.0,21387.0,1.45632633]
[1674235222571,0.02908108,21388.0,21387.0,1.92389933]
[1674235223874,0.02908108,21388.0,21387.0,1.5993282]
[1674235224106,0.036,21390.0,21387.0,2.44063987]
[1674235224361,0.036,21390.0,21388.0,1.40957678]
[1674235224618,0.036,21390.0,21389.0,2.07265318]
[1674235225129,0.0001,21390.0,21389.0,2.07265318]
[1674235225382,0.0001,21390.0,21389.0,2.37075318]
[1674235225635,9.999e-05,21392.0,21390.0,0.0001]
[1674235225900,9.999e-05,21392.0,21391.0,2.157736]
[1674235226155,9.999e-05,21392.0,21391.0,2.36942084]
[1674235226663,9.999e-05,21392.0,21391.0,2.66942084]
[1674235226923,0.01154551,21393.0,21391.0,3.56032084]
[1674235226924,0.0036585,21393.0,21391.0,3.56032084]
[1674235227253,0.01332519,21401.0,21394.0,0.02505333]
[1674235227452,0.01332519,21401.0,21395.0,2.39004097]
[1674235227453,0.44880309,21401.0,21395.0,2.39004097]
[1674235227722,0.44880309,21401.0,21396.0,1.10507928]
[1674235227962,0.01332519,21401.0,21399.0,0.148]
[1674235228235,0.01332519,21401.0,21399.0,2.07408297]
[1674235228518,0.01332519,21401.0,21399.0,2.22373988]
[1674235229027,0.01332519,21401.0,21399.0,1.879762]
[1674235229285,0.01332519,21401.0,21399.0,1.94407496]
[1674235229541,0.01332519,21401.0,21399.0,2.03607496]
[1674235230065,0.01332519,21401.0,21399.0,2.37832715]
[1674235231204,1.01270841,21400.0,21399.0,2.37832715]